lending/lending_fUSD_20240110
["ID","MTS","AMOUNT","RATE_DAILY","PERIOD"]
[311100618,1704904248335,-500.0,0.0003863,4]
[311100619,1704904248344,-1909.8,0.0003863,4]
[311100620,1704904248356,-500.0,0.0003863,4]
[311100621,1704904248365,-500.0,0.0003863,4]
[311100622,1704904248374,-500.0,0.0003863,4]
[311100623,1704904248383,-500.0,0.0003863,4]
[311100624,1704904248392,-605.62,0.0003863,4]
[311100625,1704904248403,-500.0,0.0003863,4]
[311100626,1704904248412,-1698.2,0.0003863,4]
[311100627,1704904248421,-500.0,0.0003863,4]
[311100628,1704904248430,-500.0,0.0003863,4]
[311100629,1704904248440,-500.0,0.0003863,4]
[311100630,1704904248456,-500.0,0.0003863,4]
[311100631,1704904248470,-983.68,0.0003863,4]
[311100632,1704904248479,-500.0,0.0003863,4]
[311100633,1704904248488,-500.0,0.0003863,4]
[311100634,1704904248497,-500.0,0.0003863,4]
[311100635,1704904248507,-500.0,0.0003863,4]
[311100636,1704904248517,-500.0,0.0003863,4]
[311100637,1704904248527,-728.67,0.0003863,4]
[311100638,1704904248537,-500.0,0.0003863,4]
[311100639,1704904248546,-500.0,0.0003863,4]
[311100640,1704904248556,-500.0,0.0003863,4]
[311100641,1704904248566,-500.0,0.0003863,4]
[311100642,1704904248575,-500.0,0.0003863,4]
[311100643,1704904248586,-286.25499985,0.0003863,4]
[311100644,1704904248595,-1088.2,0.0003863,4]
[311100645,1704904248607,-566.85,0.0003863,4]
[311100646,1704904248616,-857.73,0.0003863,4]
[311100647,1704904248624,-500.0,0.0003863,4]
[311100648,1704904248634,-500.0,0.0003863,4]
[311100649,1704904248644,-500.0,0.0003863,4]
[311100650,1704904248653,-500.0,0.0003863,4]
[311100651,1704904248664,-317.14,0.0003863,4]
[311100652,1704904248675,-500.0,0.0003863,4]
[311100653,1704904248685,-500.0,0.0003863,4]
[311100654,1704904248694,-500.0,0.00038657,10]
[311100655,1704904248703,-814.50284102,0.00038658,12]
[311100656,1704904248713,-1079.16330814,0.00038721,3]
[311100657,1704904248723,-1111.71362909,0.00038721,3]
[311100658,1704904248733,-151.65186412,0.00038734,2]
[311100659,1704904248743,-218.44034584,0.00038784,7]
[311100660,1704904248753,-13855.37202194,0.000388,4]
[311100661,1704904248762,-12199.52,0.000388,7]
[311100662,1704904248771,-1434.33,0.000388,3]
[311100663,1704904248781,-1434.33,0.000388,3]
[311100664,1704904248790,-1434.33,0.000388,3]
[311100665,1704904248799,-1434.33,0.000388,3]
[311100666,1704904248809,-1434.33,0.000388,3]
[311100667,1704904248818,-1434.33,0.000388,3]
[311100668,1704904248827,-1434.33,0.000388,3]
[311100669,1704904248836,-1434.33,0.000388,3]
[311100670,1704904248846,-1434.33,0.000388,3]
[311100671,1704904248857,-1434.33,0.000388,3]
[311100672,1704904248867,-1434.33,0.000388,3]
[311100673,1704904248877,-1434.33,0.000388,3]
[311100674,1704904248886,-1434.33,0.000388,3]
[311100675,1704904248895,-1434.33,0.000388,3]
[311100676,1704904248906,-1434.33,0.000388,3]
[311100677,1704904248916,-1434.33,0.000388,3]
[311100678,1704904248926,-1434.33,0.000388,3]
[311100679,1704904248935,-1434.33,0.000388,3]
[311100680,1704904248944,-1434.33,0.000388,3]
[311100681,1704904248954,-1434.33,0.000388,3]
[311100682,1704904248963,-218.44034584,0.00038869,7]
[311100683,1704904248974,-500.0,0.00038904,4]
[311100684,1704904248984,-500.0,0.00038904,4]
[311100685,1704904248993,-500.0,0.00038904,4]
[311100686,1704904249003,-500.0,0.00038904,4]
[311100687,1704904249013,-500.0,0.00038904,4]
[311100688,1704904249023,-500.0,0.00038904,4]
[311100689,1704904249034,-305.07,0.00038904,4]
[311100690,1704904249043,-500.0,0.00038904,4]
[311100691,1704904249052,-493.55,0.00038904,4]
[311100692,1704904249061,-550.46,0.00038904,4]
[311100693,1704904249071,-500.0,0.00038904,4]
[311100694,1704904249081,-500.0,0.00038904,4]
[311100695,1704904249091,-445.58,0.00038904,4]
[311100696,1704904249102,-605.47616919,0.00038904,4]
[311100697,1704904249112,-840.89,0.00038904,4]
[311100698,1704904249122,-562.73,0.00038904,4]
[311100699,1704904249131,-500.0,0.00038904,4]
[311100700,1704904249140,-500.0,0.00038904,4]
[311100701,1704904249150,-500.0,0.00038904,4]
[311100702,1704904249160,-500.0,0.00038904,4]
[311100703,1704904249169,-500.0,0.00038904,4]
[311100704,1704904249180,-500.0,0.00038904,4]
[311100705,1704904249189,-500.0,0.00038904,4]
[311100706,1704904249199,-1243.28,0.00038904,4]
[311100707,1704904249208,-500.0,0.00038904,4]
[311100708,1704904249217,-500.0,0.00038904,4]
[311100709,1704904249226,-818.8,0.00038904,4]
[311100710,1704904249235,-500.0,0.00038904,4]
[311100711,1704904249246,-500.0,0.00038904,4]
[311100712,1704904249255,-500.0,0.00038904,4]
[311100713,1704904249265,-1909.8,0.00038904,4]
[311100714,1704904249274,-500.0,0.00038904,4]
[311100715,1704904249283,-500.0,0.00038904,4]
[311100716,1704904249293,-204.44,0.00038904,4]
[311100717,1704904249302,-500.0,0.00038904,4]
[311100718,1704904249311,-500.0,0.00038904,4]
[311100719,1704904249321,-1698.2,0.00038904,4]
[311100720,1704904249330,-500.0,0.00038904,4]
[311100721,1704904249340,-500.0,0.00038904,4]
[311100722,1704904249350,-500.0,0.00038904,4]
[311100723,1704904249360,-500.0,0.00038904,4]
[311100724,1704904249371,-983.68,0.00038904,4]
[311100725,1704904249381,-500.0,0.00038904,4]
[311100726,1704904249391,-500.0,0.00038904,4]
[311100727,1704904249401,-500.0,0.00038904,4]
[311100728,1704904249410,-500.0,0.00038904,4]
[311100729,1704904249420,-728.67,0.00038904,4]
[311100730,1704904249429,-500.0,0.00038904,4]
[311100731,1704904249439,-500.0,0.00038904,4]
[311100732,1704904249448,-500.0,0.00038904,4]
[311100733,1704904249458,-500.0,0.00038904,4]
[311100734,1704904249468,-500.0,0.00038904,4]
[311100735,1704904249477,-500.0,0.00038904,4]
[311100736,1704904249486,-1088.2,0.00038904,4]
[311100737,1704904249495,-857.73,0.00038904,4]
[311100738,1704904249505,-634.57,0.00038904,4]
[311100739,1704904249515,-500.0,0.00038904,4]
[311100740,1704904249524,-352.46,0.00038904,4]
[311100741,1704904249534,-481.87091553,0.00038904,4]
[311100742,1704904249544,-535.53665787,0.00038904,4]
[311100743,1704904249554,-500.0,0.00038904,4]
[311100744,1704904249563,-180.27,0.00038911,2]
[311100745,1704904249573,-500.0,0.00038931,7]
[311100746,1704904249582,-500.0,0.00038931,7]
[311100747,1704904249591,-160.72,0.00038952,2]
[311100748,1704904249601,-281.65321815,0.0003898,2]
[311100749,1704904249610,-100000.0,0.00039,2]
[311100750,1704904249620,-1427.01104071,0.00039,2]
[311100751,1704904249629,-700.0,0.00039,3]
[311100752,1704904249639,-3000.0,0.00039,73]
[311100753,1704904249650,-150.05964641,0.0003905,7]
[311100754,1704904249660,-2000.0,0.000391,60]
[311100755,1704904249670,-195.44376165,0.00039113,4]
[311100756,1704904249679,-432.85816695,0.00039151,4]
[311100757,1704904249690,-153.25468709,0.00039176,7]
[311100758,1704904249700,-500.0,0.00039178,4]
[311100759,1704904249710,-601.42,0.00039178,4]
[311100760,1704904249719,-406.92,0.00039178,4]
[311100761,1704904249729,-500.0,0.00039178,4]
[311100762,1704904249738,-535.12,0.00039178,4]
[311100763,1704904249777,-500.0,0.00039178,4]
[311100764,1704904249787,-500.0,0.00039178,4]
[311100765,1704904249796,-550.46,0.00039178,4]
[311100766,1704904249806,-182.04,0.00039178,4]
[311100767,1704904249816,-286.32,0.00039178,4]
[311100768,1704904249826,-840.89,0.00039178,4]
[311100769,1704904249836,-562.73,0.00039178,4]
[311100770,1704904249845,-500.0,0.00039178,4]
[311100771,1704904249856,-500.0,0.00039178,4]
[311100772,1704904249865,-500.0,0.00039178,4]
[311100773,1704904249874,-500.0,0.00039178,4]
[311100774,1704904249884,-500.0,0.00039178,4]
[311100775,1704904249893,-500.0,0.00039178,4]
[311100776,1704904249903,-500.0,0.00039178,4]
[311100777,1704904249913,-608.44,0.00039178,4]
[311100778,1704904249923,-1243.28,0.00039178,4]
[311100779,1704904249932,-500.0,0.00039178,4]
[311100780,1704904249944,-818.8,0.00039178,4]
[311100781,1704904249955,-500.0,0.00039178,4]
[311100782,1704904249965,-500.0,0.00039178,4]
[311100783,1704904249975,-500.0,0.00039178,4]
[311100784,1704904249985,-1909.8,0.00039178,4]
[311100785,1704904249995,-573.17,0.00039178,4]
[311100786,1704904250005,-500.0,0.00039178,4]
[311100787,1704904250015,-500.0,0.00039178,4]
[311100788,1704904250029,-500.0,0.00039178,4]
[311100789,1704904250039,-1698.2,0.00039178,4]
[311100790,1704904250049,-500.0,0.00039178,4]
[311100791,1704904250059,-500.0,0.00039178,4]
[311100792,1704904250070,-500.0,0.00039178,4]
[311100793,1704904250080,-181.9,0.00039178,4]
[311100794,1704904250090,-983.68,0.00039178,4]
[311100795,1704904250100,-500.0,0.00039178,4]
[311100796,1704904250110,-500.0,0.00039178,4]
[311100797,1704904250120,-500.0,0.00039178,4]
[311100798,1704904250129,-500.0,0.00039178,4]
[311100799,1704904250139,-728.67,0.00039178,4]
[311100800,1704904250149,-454.34,0.00039178,4]
[311100801,1704904250158,-500.0,0.00039178,4]
[311100802,1704904250168,-500.0,0.00039178,4]
[311100803,1704904250178,-373.87,0.00039178,4]
[311100804,1704904250188,-500.0,0.00039178,4]
[311100805,1704904250198,-500.0,0.00039178,4]
[311100806,1704904250207,-1088.2,0.00039178,4]
[311100807,1704904250217,-857.73,0.00039178,4]
[311100808,1704904250227,-500.0,0.00039178,4]
[311100809,1704904250237,-441.21122701,0.00039178,4]
[311100810,1704904250247,-151.65186412,0.00039183,3]
[311100811,1704904250257,-12199.52,0.000392,7]
[311100812,1704904250267,-1000.0,0.000392,2]
[311100813,1704904250277,-150.80834968,0.00039236,7]
[311100814,1704904250287,-227.35,0.0003926,2]
[311100815,1704904250297,-151.0,0.00039267,4]
[311100816,1704904250307,-153.84,0.00039269,2]
[311100817,1704904250317,-814.50284102,0.00039285,13]
[311100818,1704904250326,-1137.3763,0.00039299,2]
[311100819,1704904250336,-1826.57008,0.00039301,2]
[311100820,1704904250346,-150.0,0.00039366,2]
[311100821,1704904250359,-153.25468709,0.00039448,7]
[311100822,1704904250369,-168.94,0.00039452,4]
[311100823,1704904250380,-500.0,0.00039452,4]
[311100824,1704904250390,-500.0,0.00039452,4]
[311100825,1704904250401,-500.0,0.00039452,4]
[311100826,1704904250410,-550.46,0.00039452,4]
[311100827,1704904250420,-840.89,0.00039452,4]
[311100828,1704904250430,-562.73,0.00039452,4]
[311100829,1704904250440,-525.24,0.00039452,4]
[311100830,1704904250449,-500.0,0.00039452,4]
[311100831,1704904250459,-500.0,0.00039452,4]
[311100832,1704904250470,-264.15,0.00039452,4]
[311100833,1704904250480,-265.7,0.00039452,4]
[311100834,1704904250490,-507.9,0.00039452,4]
[311100835,1704904250500,-500.0,0.00039452,4]
[311100836,1704904250510,-1243.28,0.00039452,4]
[311100837,1704904250520,-500.0,0.00039452,4]
[311100838,1704904250530,-818.8,0.00039452,4]
[311100839,1704904250540,-500.0,0.00039452,4]
[311100840,1704904250550,-500.0,0.00039452,4]
[311100841,1704904250561,-500.0,0.00039452,4]
[311100842,1704904250571,-1909.8,0.00039452,4]
[311100843,1704904250581,-427.9,0.00039452,4]
[311100844,1704904250591,-500.0,0.00039452,4]
[311100845,1704904250603,-500.0,0.00039452,4]
[311100846,1704904250612,-1698.2,0.00039452,4]
[311100847,1704904250622,-500.0,0.00039452,4]
[311100848,1704904250632,-500.0,0.00039452,4]
[311100849,1704904250644,-500.0,0.00039452,4]
[311100850,1704904250654,-983.68,0.00039452,4]
[311100851,1704904250664,-241.05,0.00039452,4]
[311100852,1704904250674,-500.0,0.00039452,4]
[311100853,1704904250684,-500.0,0.00039452,4]
[311100854,1704904250694,-500.0,0.00039452,4]
[311100855,1704904250704,-728.67,0.00039452,4]
[311100856,1704904250715,-500.0,0.00039452,4]
[311100857,1704904250725,-500.0,0.00039452,4]
[311100858,1704904250735,-500.0,0.00039452,4]
[311100859,1704904250745,-500.0,0.00039452,4]
[311100860,1704904250755,-1088.2,0.00039452,4]
[311100861,1704904250765,-857.73,0.00039452,4]
[311100862,1704904250776,-500.0,0.00039452,4]
[311100863,1704904250786,-3000.0,0.000395,17]
[311100864,1704904250796,-200.0,0.000395,2]
[311100865,1704904250806,-2731.50141472,0.00039508,2]
[311100866,1704904250815,-689.88590036,0.00039508,2]
[311100867,1704904250825,-6043.81582693,0.00039508,2]
[311100868,1704904250835,-11556.33587587,0.00039508,4]
[311100869,1704904250845,-1020.60072083,0.00039508,4]
[311100870,1704904250858,-580.96999094,0.00039508,4]
[311100871,1704904250868,-309.58159212,0.00039509,4]
[311100872,1704904250879,-278.75448039,0.00039509,4]
[311100873,1704904250889,-1154.8281513,0.00039509,4]
[311100874,1704904250898,-220.56685301,0.00039509,4]
[311100875,1704904250908,-188.82380756,0.00039509,4]
[311100876,1704904250918,-155.0,0.00039509,4]
[311100877,1704904250928,-474.41987552,0.00039509,2]
[311100878,1704904250938,-3000.0,0.0003951,17]
[311100879,1704904250947,-175302.06148048,0.00039511,30]
[311100880,1704904250957,-507.43546196,0.00039511,4]
[311100881,1704904250967,-5000.0,0.00039511,30]
[311100882,1704904250976,-3412.08049558,0.00039511,3]
[311100883,1704904250987,-1976.99568089,0.00039511,2]
[311100884,1704904250997,-370.29257587,0.00039511,5]
[311100885,1704904251007,-5461.490317,0.0003952,17]
[311100886,1704904251017,-91351.29103953,0.0003953,2]
[311100887,1704904251028,-1000.0,0.00039556,10]
[311100888,1704904251037,-1000.0,0.00039556,10]
[311100889,1704904251047,-1000.0,0.00039556,10]
[311100890,1704904251057,-1000.0,0.00039557,10]
[311100891,1704904251067,-1000.0,0.00039557,10]
[311100892,1704904251078,-2048.0,0.00039587,10]
[311100893,1704904251087,-619.08,0.000396,2]
[311100894,1704904251097,-97846.43819087,0.000396,2]
[311100895,1704904251108,-17850.66,0.000396,7]
[311100896,1704904251118,-19983.53,0.000396,7]
[311100897,1704904251127,-12199.52,0.000396,7]
[311100898,1704904251137,-731.2273695,0.00039621,2]
[311100899,1704904251147,-996.91,0.0003963,2]
[311100900,1704904251157,-151.65186412,0.00039632,5]
[311100901,1704904251167,-556.24228108,0.00039694,2]
[311100902,1704904251178,-500.0,0.00039726,4]
[311100903,1704904251189,-553.86,0.00039726,4]
[311100904,1704904251199,-500.0,0.00039726,4]
[311100905,1704904251210,-550.46,0.00039726,4]
[311100906,1704904251220,-840.89,0.00039726,4]
[311100907,1704904251229,-562.73,0.00039726,4]
[311100908,1704904251239,-500.0,0.00039726,4]
[311100909,1704904251249,-500.0,0.00039726,4]
[311100910,1704904251259,-500.0,0.00039726,4]
[311100911,1704904251269,-1243.28,0.00039726,4]
[311100912,1704904251279,-500.0,0.00039726,4]
[311100913,1704904251289,-818.8,0.00039726,4]
[311100914,1704904251299,-157.0,0.00039726,4]
[311100915,1704904251309,-500.0,0.00039726,4]
[311100916,1704904251318,-274.66,0.00039726,4]
[311100917,1704904251328,-1909.8,0.00039726,4]
[311100918,1704904251339,-500.0,0.00039726,4]
[311100919,1704904251350,-500.0,0.00039726,4]
[311100920,1704904251362,-1698.2,0.00039726,4]
[311100921,1704904251372,-500.0,0.00039726,4]
[311100922,1704904251383,-500.0,0.00039726,4]
[311100923,1704904251393,-500.0,0.00039726,4]
[311100924,1704904251403,-983.68,0.00039726,4]
[311100925,1704904251414,-191.69,0.00039726,4]
[311100926,1704904251424,-500.0,0.00039726,4]
[311100927,1704904251434,-446.6,0.00039726,4]
[311100928,1704904251444,-728.67,0.00039726,4]
[311100929,1704904251455,-500.0,0.00039726,4]
[311100930,1704904251465,-500.0,0.00039726,4]
[311100931,1704904251476,-500.0,0.00039726,4]
[311100932,1704904251486,-500.0,0.00039726,4]
[311100933,1704904251496,-1088.2,0.00039726,4]
[311100934,1704904251506,-857.73,0.00039726,4]
[311100935,1704904251516,-500.0,0.00039726,4]
[311100936,1704904251525,-334.8036091,0.00039753,10]
[311100937,1704904251535,-218.44034584,0.0003986,7]
[311100938,1704904251545,-58000.0,0.00039872,5]
[311100939,1704904251556,-57655.45133596,0.00039874,5]
[311100940,1704904251567,-303.0,0.0003989,3]
[311100941,1704904251577,-163.69791724,0.00039896,7]
[311100942,1704904251588,-130454.79978148,0.000399,7]
[311100943,1704904251932,-500.0,0.00038356,4]
[311100944,1704904251944,-104745.5946908,0.000399,7]
[311100945,1704904251960,-42928.09196788,0.000399,7]
[311100946,1704904251969,-7500.0,0.000399,2]
[311100947,1704904251978,-17850.66,0.000399,7]
[311100948,1704904251989,-19983.53,0.000399,7]
[311100949,1704904251998,-571.52135556,0.000399,9]
[311100950,1704904252007,-814.50284102,0.00039911,13]
[311100951,1704904252016,-1000.0,0.00039927,2]
[311100952,1704904252028,-159.49727413,0.00039937,7]
[311100953,1704904252038,-914.61079172,0.00039953,5]
[311100954,1704904252047,-1826.57009,0.0003996,2]
[311100955,1704904252056,-218.44034584,0.0003997,7]
[311100956,1704904252066,-150.0,0.00039973,7]
[311100957,1704904252074,-150.0,0.00039973,7]
[311100958,1704904252084,-194.77223487,0.00039973,7]
[311100959,1704904252093,-150.0,0.00039973,7]
[311100960,1704904252104,-150.0,0.00039973,7]
[311100961,1704904252113,-150.0,0.00039973,7]
[311100962,1704904252123,-150.0,0.00039973,7]
[311100963,1704904252132,-150.0,0.00039973,7]
[311100964,1704904252141,-159.03012349,0.00039973,7]
[311100965,1704904252150,-152.29119685,0.00039973,7]
[311100966,1704904252160,-179.28109154,0.00039973,7]
[311100967,1704904252169,-150.0,0.00039973,7]
[311100968,1704904252179,-1887.2006871,0.0003998,2]
[311100969,1704904252296,-250.0,0.00030858,2]
[311100970,1704904252306,-1.52193886,0.00038356,4]
[311100971,1704904252337,-364.92537844,0.00038356,4]
[311100972,1704904252348,-226.12394591,0.00038356,4]
[311100973,1704904252359,-500.0,0.0003863,4]
[311100974,1704904252369,-500.0,0.00038904,4]
[311100975,1704904252379,-500.0,0.00039178,4]
[311100976,1704904252389,-500.0,0.00039452,4]
[311100977,1704904252399,-404.13,0.00039726,4]
[311100978,1704904252409,-9173.5255376,0.0003998,2]
[311100979,1704904252426,-1419.151,0.0003998,2]
[311100980,1704904252442,-500.0,0.00038356,4]
[311100981,1704904252452,-5894.89275853,0.0003998,2]
[311100982,1704904252462,-914.47417269,0.00039985,2]
[311100983,1704904252530,-234.0,0.00029951,2]
[311100984,1704904252540,-500.0,0.00038356,4]
[311100985,1704904252549,-320.73,0.0003863,4]
[311100986,1704904252560,-202.53177056,0.000399,2]
[311100987,1704904252569,-1780.49364224,0.00039985,2]
[311100988,1704904252584,-4422.92657855,0.00039985,2]
[311100989,1704904252598,-2992.66617094,0.00039985,2]
[311100990,1704904252611,-24776.61805041,0.00039985,2]
[311100991,1704904252624,-606.38361612,0.00039985,2]
[311100992,1704904252635,-2270.3,0.00039985,2]
[311100993,1704904252651,-806.74421585,0.00039985,2]
[311100994,1704904252663,-661.9968496,0.00039985,2]
[311100995,1704904252677,-5518.8700875,0.00039985,2]
[311100996,1704904252691,-4920.83517438,0.00039985,2]
[311100997,1704904252704,-5067.12834277,0.00039985,2]
[311100998,1704904252717,-6096.23753928,0.00039985,2]
[311100999,1704904252758,-282.20001702,0.00029927,2]
[311101000,1704904252771,-223.79998298,0.00029927,2]
[311101001,1704904252782,-428.286,0.00029927,2]
[311101002,1704904252791,-225.67725022,0.0002995,2]
[311101003,1704904252801,-500.0,0.00038356,4]
[311101004,1704904252811,-500.0,0.00038356,4]
[311101005,1704904252821,-500.0,0.00038356,4]
[311101006,1704904252831,-25050.79372902,0.00039985,2]
[311101007,1704904252841,-879.0,0.0003999,3]
[311101008,1704904252852,-204.30056541,0.0003999,7]
[311101009,1704904252862,-100000.0,0.0004,3]
[311101010,1704904252872,-375767.97265136,0.0004,2]
[311101011,1704904252884,-3487.71837238,0.0004,2]
[311101012,1704904252896,-155083.88871972,0.0004,2]
[311101085,1704905431635,-2104.81263122,0.0002317,2]
[311101086,1704905431662,-277.6935936,0.0002317,2]
[311101087,1704905431673,-389.1409995,0.0002317,2]
[311101088,1704905431685,-267.99808679,0.0002317,2]
[311101089,1704905431694,-452.73012373,0.0002317,2]
[311101090,1704905431703,-219.30053087,0.00023171,2]
[311101091,1704905431746,-303.79750848,0.00023171,2]
[311101092,1704905431755,-185.27868182,0.00023188,2]
[311101093,1704905431764,-49.81846989,0.00023287,2]
[311101094,1704905431917,-250.18153011,0.00023287,2]
[311101096,1704905431927,-300.0,0.00023288,4]
[311101097,1704905431936,-500.0,0.00023288,4]
[311101099,1704905431946,-500.0,0.00023288,4]
[311101101,1704905431955,-500.0,0.00023288,4]
[311101103,1704905431964,-500.0,0.00023288,4]
[311101105,1704905431973,-200.0,0.00023288,4]
[311101107,1704905431982,-200.0,0.00023288,4]
[311101109,1704905431991,-240.0,0.00023288,4]
[311101111,1704905432000,-240.0,0.00023288,4]
[311101113,1704905432009,-240.94775061,0.00023288,4]
[311101115,1704905432019,-412.12075579,0.00023288,4]
[311101117,1704905432028,-185.27868168,0.00023857,2]
[311101119,1704905432037,-185.27868168,0.00024526,2]
[311101121,1704905432046,-46.19260013,0.00024889,2]
[311101142,1704905437848,-272.63739987,0.00024889,2]
[311101143,1704905437857,-185.27868168,0.00025195,2]
[311101144,1704905437867,-320.0,0.00025271,2]
[311101145,1704905437876,-185.27868168,0.00025864,2]
[311101146,1704905437886,-250.0,0.00026045,2]
[311101147,1704905437895,-467.65,0.00026045,2]
[311101148,1704905437904,-465.41,0.00026206,2]
[311101149,1704905437914,-132.54523677,0.00026533,2]
[311101150,1704905437925,-52.73344491,0.00026533,2]
[311101151,1704905437934,-640.11,0.00026814,2]
[311101152,1704905437943,-1035.12,0.00026814,2]
[311101153,1704905437952,-23880.0,0.00026883,2]
[311101154,1704905437962,-150.0,0.00026912,2]
[311101155,1704905437971,-1000.0,0.00026926,2]
[311101156,1704905437981,-167.6,0.00026993,2]
[311101157,1704905437990,-467.65,0.00027024,2]
[311101158,1704905437999,-1770.5693556,0.00027054,28]
[311101159,1704905438008,-671.5,0.00027134,2]
[311101160,1704905438018,-318.83,0.00027153,2]
[311101161,1704905438027,-181.98,0.00027157,2]
[311101162,1704905438038,-2000.0,0.0002716,2]
[311101163,1704905438047,-185.27868168,0.00027202,2]
[311101164,1704905438057,-205.69,0.00027205,2]
[311101165,1704905438066,-2500.0,0.00027397,4]
[311101166,1704905438075,-250.0,0.00027397,2]
[311101167,1704905438084,-250.0,0.000274,2]
[311101169,1704905438094,-158.27,0.00027453,2]
[311101171,1704905438103,-465.41,0.00027517,2]
[311101173,1704905438113,-156.62,0.00027626,2]
[311101175,1704905438122,-616.39,0.00027862,2]
[311101176,1704905438131,-185.27868168,0.00027871,2]
[311101177,1704905438140,-156.62,0.00027973,2]
[311101178,1704905438150,-687.51052193,0.00028,2]
[311101179,1704905438159,-467.65,0.00028002,2]
[311101180,1704905438168,-616.39,0.00028009,2]
[311101181,1704905438177,-616.39,0.00028156,2]
[311101182,1704905438186,-616.39,0.00028302,2]
[311101183,1704905438196,-156.62,0.00028319,2]
[311101184,1704905438205,-616.39,0.00028449,2]
[311101185,1704905438214,-185.27868168,0.0002854,2]
[311101186,1704905438223,-300.0,0.00028575,2]
[311101187,1704905438232,-616.39,0.00028595,2]
[311101188,1704905438241,-156.62,0.00028666,2]
[311101189,1704905438250,-616.39,0.00028742,2]
[311101190,1704905438261,-465.41,0.00028827,2]
[311101191,1704905438270,-158.27,0.00028884,2]
[311101192,1704905438279,-616.39,0.00028889,2]
[311101193,1704905438288,-1000.0,0.000289,2]
[311101194,1704905438297,-24675.8122,0.000289,2]
[311101196,1704905438306,-5563.4868,0.000289,2]
[311101198,1704905438315,-9029.3955,0.000289,2]
[311101200,1704905438323,-2370.0401,0.000289,2]
[311101202,1704905438332,-1302.53989304,0.00028912,2]
[311101204,1704905438341,-336.83837139,0.00028912,2]
[311101206,1704905438350,-467.65,0.00028981,2]
[311101208,1704905438359,-307.73,0.0002899,2]
[311101210,1704905438368,-307.73,0.0002899,2]
[311101212,1704905438378,-406.14,0.00028999,2]
[311101214,1704905438386,-406.14,0.00028999,2]
[311101216,1704905438395,-406.14,0.00028999,2]
[311101218,1704905438404,-406.14,0.00028999,2]
[311101220,1704905438413,-243.69,0.00028999,2]
[311101222,1704905438422,-512473.80917047,0.00029,2]
[311101224,1704905438430,-156.62,0.00029012,2]
[311101226,1704905438440,-616.39,0.00029035,2]
[311101228,1704905438449,-616.39,0.00029182,2]
[311101230,1704905438458,-185.27868168,0.00029209,2]
[311101232,1704905438467,-616.39,0.00029329,2]
[311101234,1704905438476,-156.62,0.00029359,2]
[311101236,1704905438485,-1003.05262789,0.00029386,2]
[311101238,1704905438495,-318.83,0.00029417,2]
[311101240,1704905438504,-616.39,0.00029475,2]
[311101242,1704905438513,-2500.18,0.000295,2]
[311101244,1704905438522,-616.39,0.00029622,2]
[311101246,1704905438531,-156.62,0.00029705,2]
[311101248,1704905438540,-616.39,0.00029768,2]
[311101250,1704905438550,-195.63942812,0.000298,2]
[311101252,1704905438559,-185.27868168,0.00029879,2]
[311101254,1704905438568,-616.39,0.00029915,2]
[311101257,1704905438577,-300.0,0.00029945,2]
[311101258,1704905438587,-467.65,0.00029959,2]